[Event "Titled Tuesday Blitz October 11 Early 2022"]
[White "Shkuran, Danylo"]
[Black "Blokhin, Sofia"]
[WhiteFideId "14106248"]
[BlackFideId "4508190"]
[WhiteElo "2427"]
[BlackElo "2005"]
[Result "0-1"]
[Round "06"]
[TimeControl "180+1"]
[Date "2022.10.12"]
[WhiteClock "0:00:02"]
[BlackClock "0:00:15"]

1. d4 {[%clk 0:03:00]}  Nf6 {[%clk 0:02:57]} 2. c4 {[%clk 0:03:00]}  g6 {[%clk 0:02:56]} 3. Nc3 {[%clk 0:02:58]}  Bg7 {[%clk 0:02:55]} 4. e4 {[%clk 0:02:57]}  d6 {[%clk 0:02:56]} 5. f3 {[%clk 0:02:57]}  O-O {[%clk 0:02:54]} 6. Be3 {[%clk 0:02:58]}  Nc6 {[%clk 0:02:53]} 7. Qd2 {[%clk 0:02:57]}  e5 {[%clk 0:02:52]} 8. Nge2 {[%clk 0:02:57]}  Nd7 {[%clk 0:02:48]} 9. d5 {[%clk 0:02:53]}  Ne7 {[%clk 0:02:46]} 10. g4 {[%clk 0:02:53]}  f5 {[%clk 0:02:38]} 11. gxf5 {[%clk 0:02:50]}  gxf5 {[%clk 0:02:39]} 12. Bh6 {[%clk 0:02:50]}  Ng6 {[%clk 0:02:31]} 13. O-O-O {[%clk 0:02:42]}  f4 {[%clk 0:02:21]} 14. Bxg7 {[%clk 0:02:40]}  Kxg7 {[%clk 0:02:22]} 15. Bh3 {[%clk 0:02:37]}  Nc5 {[%clk 0:02:19]} 16. Bxc8 {[%clk 0:02:34]}  Qxc8 {[%clk 0:02:19]} 17. h4 {[%clk 0:02:31]}  Kh8 {[%clk 0:02:11]} 18. h5 {[%clk 0:02:29]}  Ne7 {[%clk 0:02:10]} 19. Rdg1 {[%clk 0:02:00]}  a6 {[%clk 0:02:08]} 20. Rg5 {[%clk 0:01:33]}  b5 {[%clk 0:02:06]} 21. Rhg1 {[%clk 0:01:22]}  bxc4 {[%clk 0:02:00]} 22. Kc2 {[%clk 0:01:07]}  Rb8 {[%clk 0:01:57]} 23. Nc1 {[%clk 0:01:07]}  Qb7 {[%clk 0:01:50]} 24. Nd1 {[%clk 0:01:00]}  Rg8 {[%clk 0:01:41]} 25. Qc3 {[%clk 0:00:46]}  Qb4 {[%clk 0:01:27]} 26. a3 {[%clk 0:00:31]}  Qa4+ {[%clk 0:01:24]} 27. Kd2 {[%clk 0:00:30]}  Nb3+ {[%clk 0:01:20]} 28. Ke1 {[%clk 0:00:22]}  Nxc1 {[%clk 0:01:13]} 29. Qxc1 {[%clk 0:00:23]}  Qb3 {[%clk 0:01:10]} 30. Qc3 {[%clk 0:00:05]}  Qxc3+ {[%clk 0:01:06]} 31. Nxc3 {[%clk 0:00:05]}  Rxb2 {[%clk 0:01:05]} 32. Rxg8+ {[%clk 0:00:05]}  Nxg8 {[%clk 0:01:04]} 33. h6 {[%clk 0:00:05]}  Nxh6 {[%clk 0:01:02]} 34. Kd1 {[%clk 0:00:01]}  Rb3 {[%clk 0:00:58]} 35. Kc2 {[%clk 0:00:01]}  Rxa3 {[%clk 0:00:57]} 36. Rb1 {[%clk 0:00:02]}  Rb3 {[%clk 0:00:55]} 37. Ra1 {[%clk 0:00:02]}  Rb6 {[%clk 0:00:52]} 38. Na4 {[%clk 0:00:03]}  Rb8 {[%clk 0:00:47]} 39. Nc3 {[%clk 0:00:03]}  Ra8 {[%clk 0:00:43]} 40. Na4 {[%clk 0:00:04]}  Ng8 {[%clk 0:00:40]} 41. Kc3 {[%clk 0:00:04]}  Ne7 {[%clk 0:00:36]} 42. Kxc4 {[%clk 0:00:04]}  c6 {[%clk 0:00:36]} 43. dxc6 {[%clk 0:00:03]}  Nxc6 {[%clk 0:00:36]} 44. Kd5 {[%clk 0:00:04]}  Nd4 {[%clk 0:00:35]} 45. Ra3 {[%clk 0:00:04]}  Rd8 {[%clk 0:00:31]} 46. Nb6 {[%clk 0:00:03]}  h5 {[%clk 0:00:27]} 47. Nc4 {[%clk 0:00:04]}  h4 {[%clk 0:00:25]} 48. Ra2 {[%clk 0:00:02]}  Nxf3 {[%clk 0:00:23]} 49. Rf2 {[%clk 0:00:02]}  Nd4 {[%clk 0:00:20]} 50. Rh2 {[%clk 0:00:02]}  Nf3 {[%clk 0:00:18]} 51. Rh3 {[%clk 0:00:02]}  Nd4 {[%clk 0:00:14]} 52. Rxh4+ {[%clk 0:00:02]}  Kg7 {[%clk 0:00:15]} 0-1


[Site "https://www.chess.com"]

[Event "Titled Tuesday Blitz October 11 Early 2022"]
[White "Shuvalov, Evgenij"]
[Black "Vignesh, N R"]
[WhiteFideId "4187237"]
[BlackFideId "25012215"]
[WhiteElo "2049"]
[BlackElo "2386"]
[Result "0-1"]
[Round "06"]
[TimeControl "180+1"]
[Date "2022.10.12"]
[WhiteClock "0:00:15"]
[BlackClock "0:00:28"]

1. d4 {[%clk 0:02:53]}  Nf6 {[%clk 0:02:59]} 2. c4 {[%clk 0:02:53]}  e6 {[%clk 0:03:00]} 3. Nf3 {[%clk 0:02:52]}  d5 {[%clk 0:03:00]} 4. cxd5 {[%clk 0:02:52]}  exd5 {[%clk 0:03:00]} 5. Nc3 {[%clk 0:02:52]}  c6 {[%clk 0:02:59]} 6. Bg5 {[%clk 0:02:52]}  Be7 {[%clk 0:02:58]} 7. Qc2 {[%clk 0:02:52]}  g6 {[%clk 0:02:58]} 8. e3 {[%clk 0:02:52]}  Bf5 {[%clk 0:02:58]} 9. Bd3 {[%clk 0:02:52]}  Bxd3 {[%clk 0:02:58]} 10. Qxd3 {[%clk 0:02:53]}  O-O {[%clk 0:02:57]} 11. O-O {[%clk 0:02:52]}  Nbd7 {[%clk 0:02:57]} 12. h3 {[%clk 0:02:50]}  Re8 {[%clk 0:02:54]} 13. Bh6 {[%clk 0:02:42]}  Bf8 {[%clk 0:02:49]} 14. Bxf8 {[%clk 0:02:40]}  Kxf8 {[%clk 0:02:49]} 15. Rfe1 {[%clk 0:02:33]}  a5 {[%clk 0:02:47]} 16. e4 {[%clk 0:02:31]}  dxe4 {[%clk 0:02:47]} 17. Nxe4 {[%clk 0:02:31]}  Rxe4 {[%clk 0:02:46]} 18. Rxe4 {[%clk 0:02:32]}  Nxe4 {[%clk 0:02:47]} 19. Qxe4 {[%clk 0:02:29]}  Qe7 {[%clk 0:02:46]} 20. Qf4 {[%clk 0:02:27]}  Kg7 {[%clk 0:02:23]} 21. Qc7 {[%clk 0:02:21]}  Rb8 {[%clk 0:02:02]} 22. Ne5 {[%clk 0:02:12]}  Rd8 {[%clk 0:02:02]} 23. Qxb7 {[%clk 0:02:08]}  Qd6 {[%clk 0:01:55]} 24. Nxc6 {[%clk 0:02:02]}  Re8 {[%clk 0:01:54]} 25. Qb5 {[%clk 0:01:52]}  Nf6 {[%clk 0:01:45]} 26. Rd1 {[%clk 0:01:43]}  Nd5 {[%clk 0:01:38]} 27. Ne5 {[%clk 0:01:35]}  Rb8 {[%clk 0:01:36]} 28. Qxa5 {[%clk 0:01:26]}  Nf4 {[%clk 0:01:13]} 29. Qd2 {[%clk 0:01:16]}  g5 {[%clk 0:01:06]} 30. a4 {[%clk 0:01:02]}  Qd5 {[%clk 0:01:03]} 31. Nf3 {[%clk 0:00:55]}  f6 {[%clk 0:00:59]} 32. Kh2 {[%clk 0:00:46]}  Rb3 {[%clk 0:00:55]} 33. Ne1 {[%clk 0:00:41]}  Qb7 {[%clk 0:00:48]} 34. Rb1 {[%clk 0:00:38]}  Rd3 {[%clk 0:00:42]} 35. Qxd3 {[%clk 0:00:34]}  Nxd3 {[%clk 0:00:41]} 36. Nxd3 {[%clk 0:00:35]}  Qe4 {[%clk 0:00:39]} 37. Ra1 {[%clk 0:00:22]}  Qxd3 {[%clk 0:00:38]} 38. a5 {[%clk 0:00:23]}  Qxd4 {[%clk 0:00:38]} 39. a6 {[%clk 0:00:20]}  Qxb2 {[%clk 0:00:38]} 40. Ra5 {[%clk 0:00:19]}  Qb4 {[%clk 0:00:33]} 41. Ra2 {[%clk 0:00:17]}  Qc4 {[%clk 0:00:32]} 42. Ra5 {[%clk 0:00:16]}  Qf4+ {[%clk 0:00:27]} 43. Kg1 {[%clk 0:00:14]}  Qc1+ {[%clk 0:00:27]} 44. Kh2 {[%clk 0:00:15]}  Qc7+ {[%clk 0:00:28]} 0-1


[Site "https://www.chess.com"]

[Event "Titled Tuesday Blitz October 11 Early 2022"]
[White "Skibbe, Willi"]
[Black "Shvedova, Alexandra"]
[WhiteFideId "4682190"]
[BlackFideId "54154782"]
[WhiteElo "2325"]
[BlackElo "2090"]
[Result "0-1"]
[Round "06"]
[TimeControl "180+1"]
[Date "2022.10.12"]
[WhiteClock "0:02:12"]
[BlackClock "0:02:18"]

1. Nf3 {[%clk 0:03:00]}  Nf6 {[%clk 0:02:52]} 2. c4 {[%clk 0:03:00]}  e6 {[%clk 0:02:52]} 3. d4 {[%clk 0:02:59]}  d5 {[%clk 0:02:50]} 4. g3 {[%clk 0:02:59]}  dxc4 {[%clk 0:02:49]} 5. Bg2 {[%clk 0:02:53]}  Nc6 {[%clk 0:02:49]} 6. Qa4 {[%clk 0:02:53]}  Nd7 {[%clk 0:02:48]} 7. Qxc4 {[%clk 0:02:49]}  Nb6 {[%clk 0:02:48]} 8. Qd3 {[%clk 0:02:48]}  e5 {[%clk 0:02:47]} 9. dxe5 {[%clk 0:02:42]}  Qxd3 {[%clk 0:02:45]} 10. exd3 {[%clk 0:02:43]}  Nb4 {[%clk 0:02:43]} 11. Na3 {[%clk 0:02:39]}  Nxd3+ {[%clk 0:02:41]} 12. Ke2 {[%clk 0:02:40]}  Nc5 {[%clk 0:02:26]} 13. Nb5 {[%clk 0:02:31]}  Ne6 {[%clk 0:02:19]} 14. Ng5 {[%clk 0:02:27]}  Bd7 {[%clk 0:02:18]} 15. Nf3 {[%clk 0:02:12]}  Bxb5+ {[%clk 0:02:18]} 0-1


[Site "https://www.chess.com"]

[Event "Titled Tuesday Blitz October 11 Early 2022"]
[White "Sohier, Julien"]
[Black "Lamaze, Simon"]
[WhiteFideId "645346"]
[BlackFideId "36069264"]
[WhiteElo "2209"]
[BlackElo "2272"]
[Result "1-0"]
[Round "06"]
[TimeControl "180+1"]
[Date "2022.10.12"]
[WhiteClock "0:00:51"]
[BlackClock "0:00:19"]

1. e4 {[%clk 0:03:00]}  d5 {[%clk 0:02:56]} 2. exd5 {[%clk 0:02:57]}  Qxd5 {[%clk 0:02:57]} 3. d4 {[%clk 0:02:56]}  Nf6 {[%clk 0:02:55]} 4. Nf3 {[%clk 0:02:56]}  c6 {[%clk 0:02:54]} 5. Be2 {[%clk 0:02:56]}  g6 {[%clk 0:02:53]} 6. c4 {[%clk 0:02:55]}  Qd8 {[%clk 0:02:53]} 7. Nc3 {[%clk 0:02:55]}  Bg7 {[%clk 0:02:53]} 8. h3 {[%clk 0:02:55]}  O-O {[%clk 0:02:54]} 9. O-O {[%clk 0:02:55]}  Nbd7 {[%clk 0:02:51]} 10. Bf4 {[%clk 0:02:54]}  Nb6 {[%clk 0:02:51]} 11. b3 {[%clk 0:02:54]}  Bf5 {[%clk 0:02:51]} 12. Qd2 {[%clk 0:02:34]}  Ne4 {[%clk 0:02:41]} 13. Nxe4 {[%clk 0:02:34]}  Bxe4 {[%clk 0:02:42]} 14. Rad1 {[%clk 0:02:31]}  Bxf3 {[%clk 0:02:41]} 15. Bxf3 {[%clk 0:02:31]}  e6 {[%clk 0:02:41]} 16. Rfe1 {[%clk 0:02:22]}  Qd7 {[%clk 0:02:23]} 17. a4 {[%clk 0:02:17]}  Rad8 {[%clk 0:02:21]} 18. a5 {[%clk 0:02:11]}  Nc8 {[%clk 0:02:20]} 19. Bh6 {[%clk 0:02:02]}  Ne7 {[%clk 0:02:06]} 20. Bg5 {[%clk 0:01:52]}  Bxd4 {[%clk 0:01:51]} 21. Qxd4 {[%clk 0:01:47]}  Qxd4 {[%clk 0:01:48]} 22. Rxd4 {[%clk 0:01:47]}  Rxd4 {[%clk 0:01:49]} 23. Bxe7 {[%clk 0:01:47]}  Ra8 {[%clk 0:01:50]} 24. Rd1 {[%clk 0:01:36]}  Rxd1+ {[%clk 0:01:49]} 25. Bxd1 {[%clk 0:01:37]}  f5 {[%clk 0:01:49]} 26. Bf3 {[%clk 0:01:35]}  Kf7 {[%clk 0:01:49]} 27. Bc5 {[%clk 0:01:34]}  a6 {[%clk 0:01:49]} 28. Bd6 {[%clk 0:01:31]}  Kf6 {[%clk 0:01:48]} 29. c5 {[%clk 0:01:29]}  e5 {[%clk 0:01:48]} 30. Be2 {[%clk 0:01:28]}  Rd8 {[%clk 0:01:44]} 31. Bc4 {[%clk 0:01:28]}  h5 {[%clk 0:01:33]} 32. h4 {[%clk 0:01:26]}  Rd7 {[%clk 0:01:32]} 33. f3 {[%clk 0:01:25]}  Rd8 {[%clk 0:01:26]} 34. Kf2 {[%clk 0:01:25]}  Rd7 {[%clk 0:01:25]} 35. Be2 {[%clk 0:01:22]}  Rd8 {[%clk 0:01:23]} 36. g4 {[%clk 0:01:19]}  hxg4 {[%clk 0:01:08]} 37. fxg4 {[%clk 0:01:19]}  f4 {[%clk 0:01:09]} 38. Kf3 {[%clk 0:01:15]}  Rh8 {[%clk 0:00:46]} 39. Ke4 {[%clk 0:01:13]}  Rxh4 {[%clk 0:00:44]} 40. Bxe5+ {[%clk 0:01:12]}  Ke6 {[%clk 0:00:45]} 41. Bc4+ {[%clk 0:01:06]}  Ke7 {[%clk 0:00:39]} 42. Kxf4 {[%clk 0:01:06]}  Rh1 {[%clk 0:00:30]} 43. Kg5 {[%clk 0:00:59]}  Rg1 {[%clk 0:00:30]} 44. Bd6+ {[%clk 0:00:56]}  Kd7 {[%clk 0:00:28]} 45. Bf7 {[%clk 0:00:55]}  b5 {[%clk 0:00:18]} 46. axb6 {[%clk 0:00:54]}  Kd8 {[%clk 0:00:19]} 47. b7 {[%clk 0:00:54]}  Kd7 {[%clk 0:00:18]} 48. b8=Q {[%clk 0:00:53]}  Rxg4+ {[%clk 0:00:19]} 49. Kxg4 {[%clk 0:00:52]}  g5 {[%clk 0:00:19]} 50. Qc7# {[%clk 0:00:51]} 1-0


[Site "https://www.chess.com"]

[Event "Titled Tuesday Blitz October 11 Early 2022"]
[White "Sonnenschein, Philipp"]
[Black "Vlassov, Nikolai"]
[WhiteFideId "16250877"]
[BlackFideId "4103360"]
[WhiteElo "2225"]
[BlackElo "2324"]
[Result "1-0"]
[Round "06"]
[TimeControl "180+1"]
[Date "2022.10.12"]
[WhiteClock "0:01:47"]
[BlackClock "0:02:27"]

1. e4 {[%clk 0:03:00]}  c5 {[%clk 0:02:59]} 2. Nf3 {[%clk 0:03:01]}  d6 {[%clk 0:02:59]} 3. d4 {[%clk 0:03:01]}  cxd4 {[%clk 0:03:00]} 4. Nxd4 {[%clk 0:03:02]}  Nf6 {[%clk 0:03:00]} 5. Nc3 {[%clk 0:03:02]}  g6 {[%clk 0:03:00]} 6. f3 {[%clk 0:02:59]}  a6 {[%clk 0:02:59]} 7. Be3 {[%clk 0:02:58]}  Nbd7 {[%clk 0:02:59]} 8. Qd2 {[%clk 0:02:58]}  Qc7 {[%clk 0:02:58]} 9. g4 {[%clk 0:02:53]}  b5 {[%clk 0:02:59]} 10. a3 {[%clk 0:02:46]}  Nb6 {[%clk 0:03:00]} 11. g5 {[%clk 0:02:31]}  Bb7 {[%clk 0:03:01]} 12. gxf6 {[%clk 0:02:30]}  e5 {[%clk 0:02:48]} 13. Nb3 {[%clk 0:02:22]}  Nc4 {[%clk 0:02:41]} 14. Bxc4 {[%clk 0:02:15]}  bxc4 {[%clk 0:02:42]} 15. Nc1 {[%clk 0:02:15]}  Qd8 {[%clk 0:02:39]} 16. Nd5 {[%clk 0:02:12]}  Rc8 {[%clk 0:02:36]} 17. Bb6 {[%clk 0:01:58]}  Qd7 {[%clk 0:02:36]} 18. Ne2 {[%clk 0:01:54]}  Qb5 {[%clk 0:02:28]} 19. Nec3 {[%clk 0:01:47]}  Qxb2 {[%clk 0:02:27]} 20. Ra2 {[%clk 0:01:47]} 1-0


[Site "https://www.chess.com"]

[Event "Titled Tuesday Blitz October 11 Early 2022"]
[White "Svane, Rasmus"]
[Black "Laohawirapap, Prin"]
[WhiteFideId "4657101"]
[BlackFideId "6205003"]
[WhiteElo "2674"]
[BlackElo "2113"]
[Result "1-0"]
[Round "06"]
[TimeControl "180+1"]
[Date "2022.10.12"]
[WhiteClock "0:00:21"]
[BlackClock "0:00:02"]

1. Nf3 {[%clk 0:03:00]}  Nf6 {[%clk 0:02:56]} 2. g3 {[%clk 0:03:00]}  g6 {[%clk 0:02:54]} 3. Bg2 {[%clk 0:03:00]}  Bg7 {[%clk 0:02:52]} 4. O-O {[%clk 0:03:01]}  O-O {[%clk 0:02:52]} 5. d4 {[%clk 0:03:00]}  d6 {[%clk 0:02:52]} 6. Re1 {[%clk 0:03:00]}  c5 {[%clk 0:02:51]} 7. dxc5 {[%clk 0:03:00]}  dxc5 {[%clk 0:02:51]} 8. c3 {[%clk 0:03:00]}  Nc6 {[%clk 0:02:51]} 9. Qxd8 {[%clk 0:02:54]}  Rxd8 {[%clk 0:02:51]} 10. Be3 {[%clk 0:02:55]}  Ne4 {[%clk 0:02:24]} 11. Nfd2 {[%clk 0:02:54]}  Nxd2 {[%clk 0:02:23]} 12. Nxd2 {[%clk 0:02:55]}  Bd7 {[%clk 0:02:15]} 13. Bxc5 {[%clk 0:02:51]}  Rac8 {[%clk 0:02:14]} 14. Be3 {[%clk 0:02:38]}  Be6 {[%clk 0:02:10]} 15. Red1 {[%clk 0:02:30]}  Bd5 {[%clk 0:02:10]} 16. Bxd5 {[%clk 0:02:29]}  Rxd5 {[%clk 0:02:10]} 17. Nb3 {[%clk 0:02:09]}  Rb5 {[%clk 0:02:08]} 18. Rab1 {[%clk 0:02:01]}  a5 {[%clk 0:01:54]} 19. Nd4 {[%clk 0:01:59]}  Nxd4 {[%clk 0:01:52]} 20. cxd4 {[%clk 0:01:10]}  f5 {[%clk 0:01:46]} 21. Rd2 {[%clk 0:01:06]}  Rd5 {[%clk 0:01:36]} 22. Rbd1 {[%clk 0:01:06]}  Rc4 {[%clk 0:01:31]} 23. Kf1 {[%clk 0:01:04]}  a4 {[%clk 0:01:31]} 24. f3 {[%clk 0:01:01]}  Rb5 {[%clk 0:01:23]} 25. Bf2 {[%clk 0:00:56]}  Kf7 {[%clk 0:01:12]} 26. e3 {[%clk 0:00:55]}  Rcb4 {[%clk 0:00:58]} 27. Rb1 {[%clk 0:00:55]}  e5 {[%clk 0:00:54]} 28. d5 {[%clk 0:00:51]}  e4 {[%clk 0:00:54]} 29. d6 {[%clk 0:00:46]}  Rxb2 {[%clk 0:00:46]} 30. Rbd1 {[%clk 0:00:39]}  Rxd2 {[%clk 0:00:40]} 31. Rxd2 {[%clk 0:00:40]}  Bf6 {[%clk 0:00:12]} 32. d7 {[%clk 0:00:40]}  Bd8 {[%clk 0:00:12]} 33. fxe4 {[%clk 0:00:41]}  fxe4 {[%clk 0:00:13]} 34. Rd4 {[%clk 0:00:41]}  Ke6 {[%clk 0:00:13]} 35. Rxe4+ {[%clk 0:00:41]}  Kxd7 {[%clk 0:00:13]} 36. Rxa4 {[%clk 0:00:42]}  Rb1+ {[%clk 0:00:12]} 37. Kg2 {[%clk 0:00:42]}  Rb2 {[%clk 0:00:12]} 38. Kf3 {[%clk 0:00:43]}  b5 {[%clk 0:00:12]} 39. Ra7+ {[%clk 0:00:43]}  Ke6 {[%clk 0:00:12]} 40. g4 {[%clk 0:00:36]}  h5 {[%clk 0:00:10]} 41. Ra6+ {[%clk 0:00:35]}  Kf7 {[%clk 0:00:10]} 42. h3 {[%clk 0:00:36]}  hxg4+ {[%clk 0:00:10]} 43. hxg4 {[%clk 0:00:37]}  Bf6 {[%clk 0:00:09]} 44. Bg3 {[%clk 0:00:36]}  b4 {[%clk 0:00:08]} 45. Bd6 {[%clk 0:00:35]}  Bc3 {[%clk 0:00:08]} 46. Bc5 {[%clk 0:00:36]}  b3 {[%clk 0:00:06]} 47. axb3 {[%clk 0:00:34]}  Rxb3 {[%clk 0:00:07]} 48. Rc6 {[%clk 0:00:33]}  Be5 {[%clk 0:00:05]} 49. Ke4 {[%clk 0:00:33]}  Bf6 {[%clk 0:00:04]} 50. Rc7+ {[%clk 0:00:27]}  Ke6 {[%clk 0:00:04]} 51. Rc6+ {[%clk 0:00:27]}  Kf7 {[%clk 0:00:04]} 52. Bd6 {[%clk 0:00:25]}  Rc3 {[%clk 0:00:03]} 53. Ra6 {[%clk 0:00:25]}  Rc4+ {[%clk 0:00:01]} 54. Kf3 {[%clk 0:00:25]}  Rc3 {[%clk 0:00:01]} 55. Bf4 {[%clk 0:00:23]}  Rc4 {[%clk 0:00:01]} 56. Ra7+ {[%clk 0:00:22]}  Be7 {[%clk 0:00:01]} 57. Ra8 {[%clk 0:00:23]}  Ke6 {[%clk 0:00:02]} 58. Ra6+ {[%clk 0:00:23]}  Kf7 {[%clk 0:00:02]} 59. Be5 {[%clk 0:00:24]}  Rb4 {[%clk 0:00:01]} 60. Bd4 {[%clk 0:00:24]}  Rb7 {[%clk 0:00:02]} 61. Ke4 {[%clk 0:00:23]}  Rd7 {[%clk 0:00:02]} 62. Rc6 {[%clk 0:00:23]}  Rd6 {[%clk 0:00:03]} 63. Rc7 {[%clk 0:00:21]}  Re6+ {[%clk 0:00:03]} 64. Kd5 {[%clk 0:00:21]}  Rd6+ {[%clk 0:00:02]} 65. Kc4 {[%clk 0:00:21]} 1-0


[Site "https://www.chess.com"]

[Event "Titled Tuesday Blitz October 11 Early 2022"]
[White "Tania, Sachdev"]
[Black "Fernandez De La Vara, Arnaldo"]
[WhiteFideId "5007844"]
[BlackFideId "3518388"]
[WhiteElo "2306"]
[BlackElo "2387"]
[Result "1-0"]
[Round "06"]
[TimeControl "180+1"]
[Date "2022.10.12"]
[WhiteClock "0:00:57"]
[BlackClock "0:00:01"]

1. d4 {[%clk 0:03:00]}  c5 {[%clk 0:03:00]} 2. c4 {[%clk 0:02:59]}  Nf6 {[%clk 0:03:01]} 3. d5 {[%clk 0:03:00]}  a6 {[%clk 0:03:01]} 4. a4 {[%clk 0:02:58]}  g6 {[%clk 0:03:00]} 5. Nf3 {[%clk 0:02:57]}  Bg7 {[%clk 0:03:01]} 6. Nc3 {[%clk 0:02:55]}  d6 {[%clk 0:03:01]} 7. Bf4 {[%clk 0:02:55]}  O-O {[%clk 0:03:01]} 8. h3 {[%clk 0:02:56]}  Nbd7 {[%clk 0:02:59]} 9. e3 {[%clk 0:02:56]}  Ne8 {[%clk 0:02:52]} 10. Be2 {[%clk 0:02:52]}  Nc7 {[%clk 0:02:51]} 11. O-O {[%clk 0:02:50]}  Rb8 {[%clk 0:02:51]} 12. e4 {[%clk 0:02:46]}  Ne5 {[%clk 0:02:50]} 13. Nd2 {[%clk 0:02:40]}  Bd7 {[%clk 0:02:33]} 14. a5 {[%clk 0:02:31]}  b5 {[%clk 0:02:30]} 15. axb6 {[%clk 0:02:31]}  Rxb6 {[%clk 0:02:31]} 16. Qc2 {[%clk 0:02:28]}  f5 {[%clk 0:02:29]} 17. Bh2 {[%clk 0:02:18]}  f4 {[%clk 0:02:26]} 18. b3 {[%clk 0:02:05]}  g5 {[%clk 0:02:10]} 19. f3 {[%clk 0:01:57]}  h5 {[%clk 0:02:06]} 20. Kh1 {[%clk 0:01:57]}  Bh6 {[%clk 0:01:25]} 21. Na4 {[%clk 0:01:47]}  Rb4 {[%clk 0:01:20]} 22. Nb2 {[%clk 0:01:45]}  Kf7 {[%clk 0:00:58]} 23. Nd3 {[%clk 0:01:44]}  Nxd3 {[%clk 0:00:59]} 24. Bxd3 {[%clk 0:01:40]}  Rh8 {[%clk 0:00:57]} 25. e5 {[%clk 0:01:38]}  dxe5 {[%clk 0:00:50]} 26. Bg6+ {[%clk 0:01:38]}  Kf8 {[%clk 0:00:25]} 27. Ne4 {[%clk 0:01:28]}  Be8 {[%clk 0:00:04]} 28. Nxc5 {[%clk 0:01:23]}  Kg7 {[%clk 0:00:02]} 29. Bxe8 {[%clk 0:01:19]}  Qxe8 {[%clk 0:00:03]} 30. Qc3 {[%clk 0:01:19]}  Rb6 {[%clk 0:00:02]} 31. Qxe5+ {[%clk 0:01:19]}  Rf6 {[%clk 0:00:03]} 32. Qxc7 {[%clk 0:01:19]}  g4 {[%clk 0:00:04]} 33. Ne6+ {[%clk 0:01:18]}  Kg8 {[%clk 0:00:03]} 34. fxg4 {[%clk 0:01:12]}  hxg4 {[%clk 0:00:04]} 35. Nxf4 {[%clk 0:01:12]}  gxh3 {[%clk 0:00:04]} 36. Nxh3 {[%clk 0:01:11]}  Bg7 {[%clk 0:00:04]} 37. Rxf6 {[%clk 0:01:09]}  Bxf6 {[%clk 0:00:05]} 38. Qg3+ {[%clk 0:01:09]}  Kh7 {[%clk 0:00:04]} 39. Rf1 {[%clk 0:01:08]}  Rg8 {[%clk 0:00:04]} 40. Qd3+ {[%clk 0:01:04]}  Kh8 {[%clk 0:00:04]} 41. d6 {[%clk 0:00:58]}  Qc6 {[%clk 0:00:03]} 42. Qd5 {[%clk 0:00:58]}  Qb6 {[%clk 0:00:01]} 43. Qh5+ {[%clk 0:00:57]} 1-0


[Site "https://www.chess.com"]

[Event "Titled Tuesday Blitz October 11 Early 2022"]
[White "Torres Boch, Jose Francisco"]
[Black "Tsaruk, Maksim"]
[WhiteFideId "2278383"]
[BlackFideId "13511173"]
[WhiteElo "2073"]
[BlackElo "2273"]
[Result "1-0"]
[Round "06"]
[TimeControl "180+1"]
[Date "2022.10.12"]
[WhiteClock "0:00:46"]
[BlackClock "0:00:07"]

1. e4 {[%clk 0:03:00]}  e5 {[%clk 0:03:00]} 2. Nf3 {[%clk 0:03:00]}  d6 {[%clk 0:03:00]} 3. d4 {[%clk 0:02:58]}  Nd7 {[%clk 0:03:01]} 4. Nc3 {[%clk 0:02:57]}  Ngf6 {[%clk 0:03:01]} 5. Bc4 {[%clk 0:02:57]}  Be7 {[%clk 0:03:01]} 6. a4 {[%clk 0:02:58]}  O-O {[%clk 0:03:01]} 7. O-O {[%clk 0:02:58]}  c6 {[%clk 0:02:59]} 8. h3 {[%clk 0:02:48]}  b6 {[%clk 0:02:58]} 9. Qe2 {[%clk 0:02:42]}  a6 {[%clk 0:02:57]} 10. Rd1 {[%clk 0:02:36]}  Bb7 {[%clk 0:02:56]} 11. dxe5 {[%clk 0:02:32]}  dxe5 {[%clk 0:02:56]} 12. Nxe5 {[%clk 0:02:30]}  Qc7 {[%clk 0:02:44]} 13. Nxd7 {[%clk 0:02:29]}  Nxd7 {[%clk 0:02:45]} 14. e5 {[%clk 0:02:26]}  b5 {[%clk 0:02:02]} 15. axb5 {[%clk 0:02:25]}  cxb5 {[%clk 0:01:29]} 16. Bb3 {[%clk 0:02:24]}  Nxe5 {[%clk 0:01:19]} 17. Bf4 {[%clk 0:02:18]}  Bf6 {[%clk 0:01:19]} 18. Ne4 {[%clk 0:02:17]}  Bxe4 {[%clk 0:01:17]} 19. Qxe4 {[%clk 0:02:16]}  Rfe8 {[%clk 0:01:06]} 20. Re1 {[%clk 0:02:11]}  Rad8 {[%clk 0:00:54]} 21. Rxa6 {[%clk 0:02:09]}  Nf3+ {[%clk 0:00:54]} 22. gxf3 {[%clk 0:02:00]}  Rxe4 {[%clk 0:00:54]} 23. Rxe4 {[%clk 0:01:53]}  Qd7 {[%clk 0:00:45]} 24. Kg2 {[%clk 0:01:46]}  h5 {[%clk 0:00:34]} 25. Be5 {[%clk 0:01:40]}  Bxe5 {[%clk 0:00:33]} 26. Rxe5 {[%clk 0:01:41]}  Qb7 {[%clk 0:00:25]} 27. Rg6 {[%clk 0:01:27]}  Rd4 {[%clk 0:00:12]} 28. Reg5 {[%clk 0:01:21]}  Rf4 {[%clk 0:00:08]} 29. Rxg7+ {[%clk 0:01:21]}  Kf8 {[%clk 0:00:09]} 30. Rg8+ {[%clk 0:01:18]}  Ke7 {[%clk 0:00:09]} 31. Re5+ {[%clk 0:01:17]}  Kf6 {[%clk 0:00:09]} 32. Bd5 {[%clk 0:01:10]}  Qc7 {[%clk 0:00:06]} 33. Reg5 {[%clk 0:01:10]}  Qxc2 {[%clk 0:00:05]} 34. Be4 {[%clk 0:01:08]}  Qxb2 {[%clk 0:00:04]} 35. Rxh5 {[%clk 0:01:08]}  Qd4 {[%clk 0:00:04]} 36. Rh6+ {[%clk 0:01:07]}  Ke7 {[%clk 0:00:04]} 37. Rg5 {[%clk 0:01:03]}  Rf6 {[%clk 0:00:04]} 38. Rhh5 {[%clk 0:01:02]}  b4 {[%clk 0:00:04]} 39. Rd5 {[%clk 0:00:59]}  Qa7 {[%clk 0:00:03]} 40. Rb5 {[%clk 0:00:56]}  Rb6 {[%clk 0:00:04]} 41. Rbe5+ {[%clk 0:00:51]}  Kf8 {[%clk 0:00:03]} 42. Rh8+ {[%clk 0:00:49]}  Kg7 {[%clk 0:00:03]} 43. Rh7+ {[%clk 0:00:50]}  Kf8 {[%clk 0:00:03]} 44. Rh8+ {[%clk 0:00:49]}  Kg7 {[%clk 0:00:04]} 45. Rh7+ {[%clk 0:00:49]}  Kf6 {[%clk 0:00:05]} 46. Rf5+ {[%clk 0:00:48]}  Ke6 {[%clk 0:00:05]} 47. Rh6+ {[%clk 0:00:46]}  Ke7 {[%clk 0:00:05]} 48. Rxf7+ {[%clk 0:00:46]}  Kxf7 {[%clk 0:00:05]} 49. Rh7+ {[%clk 0:00:47]}  Kf6 {[%clk 0:00:06]} 50. Rxa7 {[%clk 0:00:47]}  b3 {[%clk 0:00:07]} 51. Rb7 {[%clk 0:00:46]}  b2 {[%clk 0:00:07]} 52. Rxb6+ {[%clk 0:00:46]} 1-0


[Site "https://www.chess.com"]